fUSD/lending_fUSD_20240409
["ID","MTS","AMOUNT","RATE_DAILY","PERIOD"]
[321973469,1712664640426,-500.0,0.00020798,2]
[321973471,1712664640436,-1251.55,0.00020798,2]
[321973473,1712664640445,-500.0,0.00020798,2]
[321973475,1712664640456,-2280.58,0.00020798,2]
[321973476,1712664640465,-500.0,0.00020798,2]
[321973477,1712664640475,-500.0,0.00020798,2]
[321973478,1712664640484,-1092.83,0.00020798,2]
[321973479,1712664640492,-500.0,0.00020798,2]
[321973480,1712664640502,-2614.25,0.00020798,2]
[321973481,1712664640513,-500.0,0.00020798,2]
[321973482,1712664640523,-500.0,0.00020798,2]
[321973483,1712664640534,-1352.76,0.00020798,2]
[321973484,1712664640545,-500.0,0.00020798,2]
[321973485,1712664640556,-614.13,0.00020798,2]
[321973486,1712664640567,-1668.87,0.00020798,2]
[321973487,1712664640578,-500.0,0.00020798,2]
[321973488,1712664640588,-1541.25,0.00020798,2]
[321973489,1712664640598,-3327.11,0.00020798,2]
[321973490,1712664640608,-1693.12,0.00020798,2]
[321973491,1712664640618,-44471.77,0.00020798,2]
[321973492,1712664640630,-4183.46,0.00020798,2]
[321973493,1712664640641,-803.07,0.00020798,2]
[321973494,1712664640650,-1114.87,0.00020798,2]
[321973495,1712664640660,-801.3,0.00020798,2]
[321973496,1712664640670,-4594.33,0.00020798,2]
[321973497,1712664640681,-500.0,0.00020798,2]
[321973498,1712664640691,-500.0,0.00020798,2]
[321973499,1712664640700,-500.0,0.00020798,2]
[321973500,1712664640710,-1485.62,0.00020798,2]
[321973501,1712664640719,-500.0,0.00020798,2]
[321973502,1712664640728,-2765.37,0.00020798,2]
[321973503,1712664640738,-500.0,0.00020798,2]
[321973504,1712664640747,-500.0,0.00020798,2]
[321973505,1712664640758,-1605.96,0.00020798,2]
[321973506,1712664640768,-868.47,0.00020798,2]
[321973507,1712664640777,-2586.96,0.00020798,2]
[321973508,1712664640787,-500.0,0.00020798,2]
[321973509,1712664640797,-500.0,0.00020798,2]
[321973510,1712664640807,-628.86767071,0.00020798,2]
[321973511,1712664640816,-5586.28,0.00020798,2]
[321973512,1712664640826,-1395.58,0.00020798,2]
[321973513,1712664640836,-2357.85,0.00020798,2]
[321973514,1712664640847,-261.00715477,0.00020798,2]
[321973515,1712664640857,-3238.34,0.00020798,2]
[321973516,1712664640867,-500.0,0.00020798,2]
[321973517,1712664640880,-2197.02,0.00020798,2]
[321973518,1712664640890,-500.0,0.00020798,2]
[321973519,1712664640899,-5739.99,0.00020798,2]
[321973520,1712664640909,-1443.01,0.00020798,2]
[321973521,1712664640919,-500.0,0.00020798,2]
[321973522,1712664640930,-5078.2,0.00020798,2]
[321973523,1712664641014,-500.0,0.00020798,2]
[321973524,1712664641026,-500.0,0.00020798,2]
[321973525,1712664641035,-2403.21,0.00020798,2]
[321973526,1712664641046,-705.93,0.00020798,2]
[321973527,1712664641056,-9991.01,0.00020798,2]
[321973528,1712664641065,-500.0,0.00020798,2]
[321973529,1712664641074,-1156.58,0.00020798,2]
[321973530,1712664641083,-3157.8,0.00020798,2]
[321973531,1712664641092,-500.0,0.00020798,2]
[321973532,1712664641102,-3335.8,0.00020798,2]
[321973533,1712664641112,-1014.16,0.00020798,2]
[321973534,1712664641123,-736.42,0.00020798,2]
[321973535,1712664641132,-736.42,0.00020798,2]
[321973536,1712664641143,-18008.31,0.00020798,2]
[321973537,1712664641153,-415.64455065,0.00020798,2]
[321973538,1712664641163,-1768.72,0.00020798,2]
[321973539,1712664641173,-1659.4,0.00020798,2]
[321973540,1712664641183,-1761.58,0.00020798,2]
[321973541,1712664641194,-4286.93,0.00020798,2]
[321973542,1712664641203,-500.0,0.00020798,2]
[321973543,1712664641214,-412.0327097,0.00020798,2]
[321973544,1712664641225,-3507.46,0.00020798,2]
[321973545,1712664641235,-500.0,0.00020798,2]
[321973546,1712664641246,-174.06462202,0.00020798,2]
[321973547,1712664641257,-612.87,0.00020798,2]
[321973548,1712664641267,-622.59,0.00020798,2]
[321973549,1712664641276,-16691.17,0.00020798,2]
[321973550,1712664641285,-8084.31,0.00020798,2]
[321973551,1712664641294,-500.0,0.00020798,2]
[321973552,1712664641303,-1664.48,0.00020798,2]
[321973553,1712664641312,-1659.46,0.00020798,2]
[321973554,1712664641322,-500.0,0.00020798,2]
[321973555,1712664641331,-500.0,0.00020798,2]
[321973556,1712664641341,-7115.31,0.00020798,2]
[321973557,1712664641350,-48365.6,0.00020798,2]
[321973558,1712664641360,-3078.26,0.00020798,2]
[321973559,1712664641370,-1298.39,0.00020798,2]
[321973560,1712664641379,-784.41,0.00020798,2]
[321973561,1712664641388,-1745.85,0.00020798,2]
[321973562,1712664641398,-4566.32,0.00020798,2]
[321973563,1712664641407,-500.0,0.00020798,2]
[321973564,1712664641417,-2040.06,0.00020798,2]
[321973565,1712664641427,-7555.34,0.00020798,2]
[321973566,1712664641436,-1771.87,0.00020798,2]
[321973567,1712664641446,-1764.45,0.00020798,2]
[321973568,1712664641455,-500.0,0.00020798,2]
[321973569,1712664641464,-3075.8,0.00020798,2]
[321973570,1712664641473,-500.0,0.00020798,2]
[321973571,1712664641484,-2868.23,0.00020798,2]
[321973572,1712664641493,-500.0,0.00020798,2]
[321973573,1712664641502,-3476.75,0.00020798,2]
[321973574,1712664641512,-1335.33,0.00020798,2]
[321973575,1712664641521,-500.0,0.00020798,2]
[321973576,1712664641530,-184161.64161005,0.00020799,2]
[321973577,1712664641539,-908.54,0.00020799,2]
[321973578,1712664641548,-538.16,0.00020799,2]
[321973579,1712664641558,-500.0,0.00020799,2]
[321973580,1712664641567,-516.41,0.00020799,2]
[321973581,1712664641576,-511.16,0.00020799,2]
[321973582,1712664641585,-332.45252281,0.00020799,2]
[321973583,1712664641594,-500.0,0.00020799,2]
[321973584,1712664641603,-930.38,0.00020799,2]
[321973585,1712664641613,-500.0,0.00020799,2]
[321973586,1712664641625,-500.0,0.00020799,2]
[321973587,1712664641634,-500.0,0.00020799,2]
[321973588,1712664641643,-500.0,0.00020799,2]
[321973589,1712664641653,-794.37,0.00020799,2]
[321973590,1712664641662,-1026.68,0.00020799,2]
[321973591,1712664641671,-521.36,0.00020799,2]
[321973592,1712664641681,-404.10573761,0.00020799,2]
[321973593,1712664641690,-583.94,0.00020799,2]
[321973594,1712664641699,-500.0,0.00020799,2]
[321973595,1712664641708,-500.0,0.00020799,2]
[321973596,1712664641717,-373.4153577,0.00020799,2]
[321973597,1712664641727,-920.28,0.00020799,2]
[321973598,1712664641736,-500.0,0.00020799,2]
[321973599,1712664641745,-500.0,0.00020799,2]
[321973600,1712664641754,-500.0,0.00020799,2]
[321973601,1712664641763,-1185.78,0.00020799,2]
[321973602,1712664641772,-500.0,0.00020799,2]
[321973603,1712664641781,-1010.85,0.00020799,2]
[321973604,1712664641790,-500.0,0.00020799,2]
[321973605,1712664641799,-1529.36,0.00020799,2]
[321973606,1712664641808,-523.33,0.00020799,2]
[321973607,1712664641817,-500.0,0.00020799,2]
[321973608,1712664641827,-500.0,0.00020799,2]
[321973609,1712664641836,-518.51863991,0.00020799,2]
[321973610,1712664641845,-500.0,0.00020799,2]
[321973611,1712664641855,-500.0,0.00020799,2]
[321973612,1712664641864,-254.77637725,0.00020799,2]
[321973613,1712664641874,-500.0,0.00020799,2]
[321973614,1712664641883,-736.26,0.00020799,2]
[321973615,1712664641893,-398.3040009,0.00020799,2]
[321973616,1712664641902,-500.0,0.00020799,2]
[321973617,1712664641911,-500.0,0.00020799,2]
[321973618,1712664641920,-500.0,0.00020799,2]
[321973619,1712664641929,-500.0,0.00020799,2]
[321973620,1712664641938,-500.0,0.00020799,2]
[321973621,1712664641948,-590.84,0.00020799,2]
[321973622,1712664641959,-500.0,0.00020799,2]
[321973623,1712664641969,-500.0,0.00020799,2]
[321973624,1712664641978,-500.0,0.00020799,2]
[321973625,1712664641988,-520.55,0.00020799,2]
[321973626,1712664641997,-500.0,0.00020799,2]
[321973627,1712664642006,-500.0,0.00020799,2]
[321973628,1712664642015,-150.0,0.00020799,2]
[321973629,1712664642024,-500.0,0.00020799,2]
[321973630,1712664642034,-603.97,0.00020799,2]
[321973631,1712664642043,-612.4,0.00020799,2]
[321973632,1712664642052,-500.0,0.00020799,2]
[321973633,1712664642061,-500.0,0.00020799,2]
[321973634,1712664642071,-2092.03,0.00020799,2]
[321973635,1712664642080,-582.0,0.00020799,2]
[321973636,1712664642089,-4403.49,0.00020799,2]
[321973637,1712664642098,-500.0,0.00020799,2]
[321973638,1712664642107,-500.0,0.00020799,2]
[321973639,1712664642116,-500.0,0.00020799,2]
[321973640,1712664642127,-500.0,0.00020799,2]
[321973641,1712664642136,-500.0,0.00020799,2]
[321973642,1712664642145,-1464.93,0.00020799,2]
[321973643,1712664642154,-652.44,0.00020799,2]
[321973644,1712664642163,-3041.62,0.00020799,2]
[321973645,1712664642172,-500.0,0.00020799,2]
[321973646,1712664642181,-500.0,0.00020799,2]
[321973647,1712664642191,-862.66,0.00020799,2]
[321973648,1712664642199,-500.0,0.00020799,2]
[321973649,1712664642209,-4849.31,0.00020799,2]
[321973650,1712664642218,-2720.24,0.00020799,2]
[321973651,1712664642227,-9038.48,0.00020799,2]
[321973652,1712664642236,-500.0,0.00020799,2]
[321973653,1712664642245,-500.0,0.00020799,2]
[321973654,1712664642254,-585.18,0.00020799,2]
[321973655,1712664642263,-500.0,0.00020799,2]
[321973656,1712664642273,-665.71,0.00020799,2]
[321973657,1712664642282,-1099.72,0.00020799,2]
[321973658,1712664642291,-11533.73,0.00020799,2]
[321973659,1712664642301,-2320.98,0.00020799,2]
[321973660,1712664642310,-2875.97,0.00020799,2]
[321973661,1712664642320,-3614.71,0.00020799,2]
[321973662,1712664642329,-6747.08,0.00020799,2]
[321973663,1712664642338,-500.0,0.00020799,2]
[321973664,1712664642347,-500.0,0.00020799,2]
[321973665,1712664642356,-5855.99,0.00020799,2]
[321973666,1712664642366,-500.0,0.00020799,2]
[321973667,1712664642376,-17198.98,0.00020799,2]
[321973669,1712664642385,-500.0,0.00020799,2]
[321973670,1712664642394,-4637.68,0.00020799,2]
[321973671,1712664642403,-500.0,0.00020799,2]
[321973672,1712664642412,-10640.21,0.00020799,2]
[321973673,1712664642422,-2835.19,0.00020799,2]
[321973674,1712664642432,-286.54280358,0.00020799,2]
[321973675,1712664642442,-4854.05,0.00020799,2]
[321973677,1712664642452,-4304.41,0.00020799,2]
[321973679,1712664642461,-2135.7,0.00020799,2]
[321973681,1712664642471,-517.74,0.00020799,2]
[321973683,1712664642481,-6234.91,0.00020799,2]
[321973685,1712664642491,-2410.03,0.00020799,2]
[321973686,1712664642501,-500.0,0.00020799,2]
[321973687,1712664642511,-22161.25,0.00020799,2]
[321973688,1712664642521,-500.0,0.00020799,2]
[321973689,1712664642531,-14503.6,0.00020799,2]
[321973690,1712664642541,-1610.72,0.00020799,2]
[321973691,1712664642551,-520.95947864,0.00020799,2]
[321973692,1712664642562,-2503.97,0.00020799,2]
[321973693,1712664642571,-500.0,0.00020799,2]
[321973694,1712664642580,-500.0,0.00020799,2]
[321973695,1712664642590,-2558.98,0.00020799,2]
[321973696,1712664642599,-500.0,0.00020799,2]
[321973697,1712664642609,-736.42,0.00020799,2]
[321973698,1712664642618,-736.42,0.00020799,2]
[321973699,1712664642628,-736.42,0.00020799,2]
[321973700,1712664642638,-4849.43540721,0.00020799,2]
[321973701,1712664643115,-732.48459279,0.00020799,2]
[321973702,1712664643126,-3934.79,0.00020799,2]
[321973703,1712664643136,-1583.52043432,0.00020799,2]
[321973704,1712664643147,-1291.77956568,0.00020799,2]
[321973705,1712664643157,-500.0,0.00020799,2]
[321973707,1712664643166,-365.3412857,0.00020799,2]
[321973723,1712664643776,-613.66103895,0.00020798,2]
[321973724,1712664643786,-134.6587143,0.00020799,2]
[321973725,1712664643795,-1475.11467755,0.00020799,2]
[321973726,1712664643821,-1169.61532245,0.00020799,2]
[321973727,1712664643831,-1220.14737679,0.00020799,2]
[321973728,1712664643852,-546.29578459,0.00020799,2]
[321973729,1712664643863,-1484.97683862,0.00020799,2]
[321973730,1712664643873,-500.0,0.00020799,2]
[321973731,1712664643882,-4168.68,0.00020799,2]
[321973732,1712664643891,-3110.15,0.00020799,2]
[321973733,1712664643901,-925.18,0.00020799,2]
[321973734,1712664643910,-726.03,0.00020799,2]
[321973735,1712664643919,-1764.86791288,0.00020799,2]
[321973736,1712664643948,-425.064,0.00020799,2]
[321973737,1712664645039,-425.34,0.00020799,2]
[321973738,1712664645072,-557.23808712,0.00020799,2]
[321973739,1712664645081,-871.0,0.00020799,2]
[321973740,1712664645090,-622.01,0.00020799,2]
[321973741,1712664645099,-6488.56,0.00020799,2]
[321973742,1712664645108,-5255.04,0.00020799,2]
[321973743,1712664645117,-3889.84,0.00020799,2]
[321973744,1712664645127,-8405.66,0.00020799,2]
[321973745,1712664645136,-1781.04,0.00020799,2]
[321973746,1712664645145,-8516.33,0.00020799,2]
[321973747,1712664645154,-500.0,0.00020799,2]
[321973748,1712664645163,-22590.78021535,0.00020799,2]
[321973749,1712664645175,-3383.57127162,0.00020799,2]
[321973750,1712664645186,-3010.73596598,0.00020799,2]
[321973751,1712664645197,-675.19064495,0.00020799,2]
[321973752,1712664645209,-10363.67212789,0.00020799,2]
[321973753,1712664645239,-186.06977421,0.00020799,2]
[321973754,1712664645248,-3567.71,0.00020799,2]
[321973755,1712664645257,-300.22596249,0.00020799,2]
[321973756,1712664645267,-500.0,0.00020799,2]
[321973757,1712664645275,-482.02756986,0.00020799,2]
[321973758,1712664645287,-4285.3059338,0.00020799,2]
[321973759,1712664645298,-1744.95853678,0.00020799,2]
[321973760,1712664645309,-507.90795956,0.00020799,2]
[321973761,1712664645318,-3044.48264044,0.00020799,2]
[321973762,1712664645329,-318.30735956,0.00020799,2]
[321973763,1712664645338,-350.98008283,0.00020799,2]
[321973764,1712664645347,-19.00133158,0.00020799,2]
[321973784,1712664646351,-599.27979208,0.0002068,2]
[321973785,1712664646363,-1574.95001678,0.0002068,2]
[321973786,1712664646404,-769.69106145,0.0002068,2]
[321973787,1712664646420,-5480.0,0.0002068,2]
[321973788,1712664672459,25000.0,0.00032795,30]
[321973789,1712664718352,10552.29962413,0.00032795,30]
[321973790,1712664772534,1000.0,0.000265,30]
[321973791,1712664772935,25000.0,0.00032795,30]
[321973792,1712664801907,2000.0,0.00025211,17]
[321973793,1712665013408,151.0,0.00027187,120]
[321973795,1712665109169,-1946.85537606,0.00018991,2]
[321973796,1712665109195,-588.84106727,0.00018992,2]
[321973797,1712665109220,-375.99594554,0.00018992,2]
[321973798,1712665109245,-2354.77756212,0.00018993,2]
[321973799,1712665109269,-733.53004901,0.00019,3]
[321973800,1712665130327,311.09,0.00017663,2]
[321973801,1712665209000,292.16766327,0.00017663,2]
[321973802,1712665212609,155.0,0.00017663,2]
[321973803,1712665227422,438.55249909,0.00017663,2]
[321973804,1712665232613,155.0,0.00017663,2]
[321973805,1712665238345,407.69096963,0.00017663,2]
[321973806,1712665250923,155.0,0.00017663,2]
[321973807,1712665256155,407.49185613,0.00017663,2]
[321973808,1712665268634,268.04259869,0.00017663,2]
[321973829,1712665418383,151.0,0.00027306,120]
[321973832,1712665440750,1000.0,0.000181,2]
[321973882,1712665538619,25000.0,0.00032792,30]
[321973891,1712665655757,435.54,0.00017439,2]
[321973892,1712665693018,182.17,0.00015457,2]
[321973905,1712665831711,-536.85010507,0.00018898,2]
[321973906,1712665831721,-120.13622493,0.00019,3]
[321973907,1712665831772,-315.0,0.00019,3]
[321973908,1712665831836,-81.33372606,0.00019,3]
[321973909,1712665831846,-249.45627394,0.00019,2]
[321973910,1712665831860,-56.71701694,0.00019,2]
[321973911,1712665831870,-443.98370943,0.00019,2]
[321973912,1712665831880,-150.0,0.00019277,2]
[321973913,1712665831891,-369.55108652,0.00019278,2]
[321973914,1712665831980,-2309.76445273,0.00019278,2]
[321973915,1712665831993,-447.39443246,0.00019278,2]
[321973916,1712665832006,-621.77146932,0.00019278,2]
[321973917,1712665832020,-1276.92449641,0.00019278,2]
[321973918,1712665832033,-450.25,0.00019278,2]
[321973923,1712665832125,-791.24822385,0.00019278,2]
[321973924,1712665832138,-8196.04373871,0.00019278,2]
[321973925,1712665832149,-521.56,0.00019294,2]
[321973926,1712665832159,-1850.75,0.00019322,2]
[321973927,1712665832170,-13594.18538599,0.00019328,2]
[321973928,1712665832203,-994.06607205,0.00019328,2]
[321973929,1712665832216,-830.08689098,0.00019328,2]
[321973959,1712665838520,-175.9,0.00019315,2]
[321973960,1712665838529,-5244.11722588,0.00019328,2]
[321973961,1712665838542,-156.7844251,0.00019328,2]
[321973962,1712665838552,-119.1955749,0.00019399,2]
[321973963,1712665838564,-392.8044251,0.00019399,2]
[321973964,1712665838574,-114.74216108,0.0001946,2]
[321973965,1712665838585,-385.25783892,0.0001946,2]
[321973966,1712665838594,-163.77,0.0001947,2]
[321973967,1712665838604,-2338.46,0.00019652,2]
[321973968,1712665838614,-435.54,0.00019703,2]
[321973969,1712665838623,-488.0,0.00019773,2]
[321973970,1712665838634,-153.58,0.00019795,2]
[321973971,1712665838643,-163.77,0.00019808,2]
[321973972,1712665838652,-2566.22979874,0.0002,2]
[321973973,1712665838665,-3140.22977766,0.0002,2]
[321973974,1712665838677,-266.61393906,0.0002,2]
[321973975,1712665838743,-548.16008,0.0002,2]
[321973976,1712665838756,-18891.05500001,0.0002,2]
[321973977,1712665838768,-2836.74479185,0.0002,2]
[321973978,1712665842289,-1074.06650944,0.0002,2]
[321973979,1712665842301,-1927.64577303,0.0002,2]
[321973980,1712665842313,-1432.13109516,0.0002,2]
[321973981,1712665842324,-1028.443,0.0002,2]
[321973982,1712665842371,-22913.10208854,0.0002,2]
[321973983,1712665842381,-15404.4,0.0002,2]
[321973984,1712665842390,-163.77,0.00020146,2]
[321973985,1712665842399,-163.77,0.00020485,2]
[321973986,1712665842408,-150.0,0.00020487,2]
[321973987,1712665842419,-150.0,0.000205,2]
[321973988,1712665842428,-530.0,0.0002052,2]
[321973989,1712665842437,-1593.84498793,0.00020546,2]
[321973990,1712665842446,-509.0,0.00020547,2]
[321973991,1712665842455,-2494.24,0.00020548,2]
[321973992,1712665842465,-605.27736358,0.00020577,2]
[321973993,1712665842476,-642.18873986,0.00020577,2]
[321973994,1712665842518,-131.94170274,0.00020577,2]
[321973995,1712665842527,-204.95329731,0.00020578,2]
[321973997,1712665842544,-287.1106324,0.00020578,2]
[321973999,1712665842553,-680.44436795,0.00020578,2]
[321974000,1712665842569,-567.61030712,0.00020578,2]
[321974001,1712665842582,-501.6698596,0.00020578,2]
[321974002,1712665842593,-502.6413364,0.00020578,2]
[321974003,1712665842606,-725.81442893,0.00020578,2]
[321974004,1712665842615,-428.79165409,0.00020579,2]
[321974005,1712665842624,-584.6708,0.0002058,2]
[321974006,1712665842634,-46.43805689,0.00020581,2]
[321974010,1712665842764,-953.56194311,0.00020581,2]
[321974012,1712665842773,-7009.9493,0.00020581,2]
[321974013,1712665842782,-312.43654,0.0002059,2]
[321974014,1712665842791,-4804.76070747,0.00020642,2]
[321974015,1712665842800,-428.79165405,0.00020647,2]
[321974016,1712665842809,-182.4,0.00020668,2]
[321974017,1712665842818,-1366.0892382,0.00020674,2]
[321974018,1712665842828,-376.71271097,0.00020677,2]
[321974019,1712665842838,-1083.18709187,0.00020677,2]
[321974020,1712665842846,-155.0,0.00020677,2]
[321974021,1712665842856,-167.07432978,0.00020677,2]
[321974022,1712665842866,-2022.89,0.00020677,2]
[321974023,1712665842875,-3305.43,0.00020677,2]
[321974024,1712665842885,-3609.98,0.00020677,2]
[321974025,1712665842894,-4132.35,0.00020677,2]
[321974026,1712665842904,-2972.33,0.00020677,2]
[321974027,1712665842913,-1808.37,0.00020677,2]
[321974028,1712665842922,-521.63,0.00020677,2]
[321974029,1712665842931,-19060.88,0.00020677,2]
[321974030,1712665842939,-2680.82,0.00020677,2]
[321974031,1712665842949,-4276.25,0.00020677,2]
[321974032,1712665842957,-8785.95,0.00020677,2]
[321974033,1712665842966,-6156.77,0.00020677,2]
[321974034,1712665842975,-3883.55,0.00020677,2]
[321974035,1712665842984,-6641.07,0.00020677,2]
[321974036,1712665842994,-1989.05,0.00020677,2]
[321974037,1712665843003,-3247.73,0.00020677,2]
[321974038,1712665843013,-2668.69,0.00020677,2]
[321974039,1712665843022,-2312.81,0.00020677,2]
[321974040,1712665843031,-500.0,0.00020677,2]
[321974041,1712665843042,-3149.89,0.00020677,2]
[321974042,1712665843051,-6560.49,0.00020677,2]
[321974043,1712665843060,-500.0,0.00020677,2]
[321974044,1712665843069,-500.0,0.00020677,2]
[321974045,1712665843079,-500.0,0.00020677,2]
[321974046,1712665843088,-500.0,0.00020677,2]
[321974047,1712665843098,-5300.28,0.00020677,2]
[321974048,1712665843107,-500.0,0.00020677,2]
[321974049,1712665843116,-500.0,0.00020677,2]
[321974050,1712665843125,-549.91,0.00020677,2]
[321974051,1712665843134,-500.0,0.00020677,2]
[321974052,1712665843143,-1486.46,0.00020677,2]
[321974053,1712665843152,-611.61,0.00020677,2]
[321974054,1712665843161,-500.0,0.00020677,2]
[321974055,1712665843170,-2914.38,0.00020677,2]
[321974056,1712665843180,-500.0,0.00020677,2]
[321974057,1712665843189,-365.59720021,0.00020678,2]
[321974058,1712665843198,-633.21,0.00020678,2]
[321974059,1712665843207,-500.0,0.00020678,2]
[321974060,1712665843216,-500.0,0.00020678,2]
[321974061,1712665843225,-830.95,0.00020678,2]
[321974062,1712665843234,-500.0,0.00020678,2]
[321974063,1712665843243,-724.82,0.00020678,2]
[321974064,1712665843252,-556.53,0.00020678,2]
[321974065,1712665843261,-1454.8,0.00020678,2]
[321974066,1712665843270,-623.71,0.00020678,2]
[321974067,1712665843280,-1046.14,0.00020678,2]
[321974068,1712665843289,-550.56,0.00020678,2]
[321974069,1712665843298,-500.0,0.00020678,2]
[321974070,1712665843307,-1267.86,0.00020678,2]
[321974071,1712665843316,-1190.97,0.00020678,2]
[321974072,1712665843326,-1065.02,0.00020678,2]
[321974073,1712665843336,-804.28,0.00020678,2]
[321974074,1712665843348,-500.0,0.00020678,2]
[321974075,1712665843357,-777.91,0.00020678,2]
[321974076,1712665843366,-703.67,0.00020678,2]
[321974077,1712665843376,-1648.63,0.00020678,2]
[321974078,1712665843385,-897.46,0.00020678,2]
[321974079,1712665843394,-500.0,0.00020678,2]
[321974080,1712665843403,-500.0,0.00020678,2]
[321974081,1712665843412,-1230.95,0.00020678,2]
[321974082,1712665843422,-1108.29,0.00020678,2]
[321974083,1712665843432,-1475.61,0.00020678,2]
[321974084,1712665843441,-500.0,0.00020678,2]
[321974085,1712665843449,-890.5,0.00020678,2]
[321974086,1712665843458,-500.0,0.00020678,2]
[321974087,1712665843467,-500.0,0.00020678,2]
[321974088,1712665843476,-1326.62,0.00020678,2]
[321974090,1712665843485,-703.42,0.00020678,2]
[321974092,1712665843494,-1436.83,0.00020678,2]
[321974094,1712665843503,-1026.49,0.00020678,2]
[321974096,1712665843512,-1016.08,0.00020678,2]
[321974098,1712665843521,-733.11,0.00020678,2]
[321974100,1712665843530,-500.0,0.00020678,2]
[321974102,1712665843539,-1113.15,0.00020678,2]
[321974104,1712665843548,-1151.95,0.00020678,2]
[321974106,1712665843556,-1039.35,0.00020678,2]
[321974108,1712665843566,-3156.13,0.00020678,2]
[321974109,1712665843575,-500.0,0.00020678,2]
[321974111,1712665843584,-526.67,0.00020678,2]
[321974113,1712665843593,-500.0,0.00020678,2]
[321974114,1712665843603,-1647.48,0.00020678,2]
[321974115,1712665843612,-500.0,0.00020678,2]
[321974116,1712665843621,-1045.33,0.00020678,2]
[321974117,1712665843631,-622.21,0.00020678,2]
[321974118,1712665843640,-500.0,0.00020678,2]
[321974119,1712665843650,-1789.3,0.00020678,2]
[321974120,1712665843658,-500.0,0.00020678,2]
[321974121,1712665843668,-1081.42,0.00020678,2]
[321974122,1712665843677,-1029.98,0.00020678,2]
[321974123,1712665843686,-500.0,0.00020678,2]
[321974124,1712665843695,-500.0,0.00020678,2]
[321974125,1712665843704,-1047.3,0.00020678,2]
[321974126,1712665843713,-2321.81,0.00020678,2]
[321974127,1712665843722,-588.54,0.00020678,2]
[321974128,1712665843732,-895.57,0.00020678,2]
[321974129,1712665843742,-1068.42,0.00020678,2]
[321974130,1712665843751,-9343.7,0.00020678,2]
[321974131,1712665843760,-155.33500449,0.00020678,2]
[321974132,1712665843770,-2185.55,0.00020678,2]
[321974133,1712665843779,-2396.9,0.00020678,2]
[321974134,1712665843788,-5003.31,0.00020678,2]
[321974135,1712665843798,-500.0,0.00020678,2]
[321974136,1712665843807,-500.0,0.00020678,2]
[321974137,1712665843817,-1381.28,0.00020678,2]
[321974138,1712665843829,-500.0,0.00020678,2]
[321974139,1712665843839,-2505.32,0.00020678,2]
[321974140,1712665843848,-1539.04,0.00020678,2]
[321974141,1712665843858,-1599.33,0.00020678,2]
[321974142,1712665843868,-1337.9,0.00020678,2]
[321974143,1712665843878,-1199.4,0.00020678,2]
[321974144,1712665843887,-1296.4,0.00020678,2]
[321974145,1712665843896,-4009.15,0.00020678,2]
[321974146,1712665843906,-42618.78,0.00020678,2]
[321974147,1712665843915,-2259.61,0.00020678,2]
[321974148,1712665843925,-500.0,0.00020678,2]
[321974149,1712665843934,-500.0,0.00020678,2]
[321974150,1712665843942,-4402.9,0.00020678,2]
[321974151,1712665843952,-500.0,0.00020678,2]
[321974152,1712665843960,-2657.06,0.00020678,2]
[321974153,1712665843970,-676.51,0.00020678,2]
[321974154,1712665843985,-971.91,0.00020678,2]
[321974155,1712665844003,-1889.75,0.00020678,2]